[Event "Teplice Open 2019"]
[Site "Teplice"]
[Date "2019.06.20"]
[Round "6.14"]
[White "Shevchenko, Kirill"]
[Black "Efroimski, Marsel"]
[Result "1-0"]
[ECO "D37"]
[WhiteElo "2539"]
[BlackElo "2327"]
[Annotator "ChessBase"]
[PlyCount "97"]
[EventDate "2019.06.15"]
[EventType "swiss"]
[EventCountry "CZE"]
[SourceTitle "playchess.com"]
[Source "ChessBase"]
[SourceQuality "1"]
[TimeControl "40/5400+30:1800+30"]

1. d4 {[%emt 0:00:00]} d5 {[%emt 0:00:00]} 2. c4 {[%emt 0:00:09]} e6 {[%emt 0:00:00]} 3. Nc3 {[%emt 0:00:28]} a6 {[%emt 0:00:00]} 4. cxd5 {[%emt 0:02:17]} exd5 {[%emt 0:00:00]} 5. Nf3 {[%emt 0:00:13]} Nf6 {[%emt 0:00:21]} 6. Bg5 {[%emt 0:00:59]} Be6 {[%emt 0:00:07]} 7. e3 {[%emt 0:01:03]} Nbd7 {[%emt 0:00:06]} 8. Bd3 {[%emt 0:02:31]} Bd6 {[%emt 0:00:33]} 9. Bh4 {[%emt 0:03:25]} h6 {[%emt 0:00:11]} 10. Rc1 {[%emt 0:03:28]} c6 {[%emt 0:03:55]} 11. a3 {[%emt 0:06:11]} Rc8 {[%emt 0:16:20]} 12. Bg3 {[%emt 0:17:34]} Bxg3 {[%emt 0:10:12]} 13. hxg3 {[%emt 0:00:14]} Bg4 {[%emt 0:00:52]} 14. b4 {[%emt 0:08:09]} Qe7 {[%emt 0:02:08]} 15. Qb3 {[%emt 0:02:19]} O-O {[%emt 0:04:34]} 16. Nd2 {[%emt 0:08:40]} Rfe8 {[%emt 0:08:27]} 17. Na4 {[%emt 0:08:35]} Bh5 {[%emt 0:11:51]} 18. Nc5 {[%emt 0:07:38]} Nf8 {[%emt 0:06:49]} 19. Nf3 {[%emt 0:04:39]} Bg6 {[%emt 0:02:52]} 20. Ne5 {[%emt 0:06:01]} Bxd3 {[%emt 0:01:01]} 21. Qxd3 {[%emt 0:00:04]} Ne4 {[%emt 0:04:13]} 22. Nxe4 {[%emt 0:03:57]} dxe4 {[%emt 0:00:02]} 23. Qb3 {[%emt 0:00:45]} Nd7 {[%emt 0:06:11]} 24. Nxd7 {[%emt 0:00:58]} Qxd7 {[%emt 0:00:02]} 25. Rh5 {[%emt 0:00:02]} Re6 {[%emt 0:07:28]} 26. a4 {[%emt 0:01:50]} Kh7 {[%emt 0:00:55]} 27. Rhc5 {[%emt 0:02:44]} b6 {[%emt 0:06:25]} 28. R5c3 {[%emt 0:02:41]} Rf6 {[%emt 0:02:30]} 29. Qc2 {[%emt 0:01:31]} Qe7 {[%emt 0:03:21]} 30. b5 {[%emt 0:01:12]} axb5 {[%emt 0:00:25]} 31. axb5 {[%emt 0:00:02]} Qb4 {[%emt 0:01:41]} 32. Qxe4+ {[%emt 0:00:54]} g6 {[%emt 0:00:58]} 33. Qb1 {[%emt 0:00:30]} Qa5 {[%emt 0:00:53]} 34. Ke2 {[%emt 0:01:07]} Rf5 {[%emt 0:00:33]} 35. bxc6 {[%emt 0:01:19]} Rf6 {[%emt 0:00:37]} 36. Kf1 {[%emt 0:01:12]} h5 {[%emt 0:00:42]} 37. c7 {[%emt 0:00:46]} Qd5 {[%emt 0:00:38]} 38. Qd3 {[%emt 0:00:23]} Qd7 {[%emt 0:00:23]} 39. Kg1 {[%emt 0:00:34]} Kg7 {[%emt 0:00:29]} 40. Qe4 {[%emt 0:00:19]} Re6 {[%emt 0:00:16]} 41. Qb7 {[%emt 0:30:17]} g5 {[%emt 0:30:44]} 42. Rc6 {[%emt 0:01:55]} h4 {[%emt 0:00:42]} 43. Rxe6 {[%emt 0:00:40]} Qxe6 {[%emt 0:00:00]} 44. gxh4 {[%emt 0:00:00]} gxh4 {[%emt 0:00:00]} 45. d5 {[%emt 0:00:00]} Qg4 {[%emt 0:00:00]} 46. Qxc8 {[%emt 0:00:00]} Qxc8 {[%emt 0:00:00]} 47. d6 {[%emt 0:00:00]} h3 {[%emt 0:00:00]} 48. d7 {[%emt 0:00:00]} Qa8 {[%emt 0:00:00]} 49. gxh3 {[%emt 0:00:00]} 1-0

[Event "Teplice Open 2019"]
[Site "Teplice"]
[Date "2019.06.20"]
[Round "6.15"]
[White "Mikes, Jan"]
[Black "Salomon, Johan"]
[Result "0-1"]
[ECO "C11"]
[WhiteElo "2404"]
[BlackElo "2509"]
[Annotator "ChessBase"]
[PlyCount "74"]
[EventDate "2019.06.15"]
[EventType "swiss"]
[EventCountry "CZE"]
[SourceTitle "playchess.com"]
[Source "ChessBase"]
[SourceQuality "1"]
[TimeControl "40/5400+30:1800+30"]

1. e4 {[%emt 0:00:00]} e6 {[%emt 0:00:00]} 2. d4 {[%emt 0:00:00]} d5 {[%emt 0:00:00]} 3. Nc3 {[%emt 0:00:00]} Nf6 {[%emt 0:00:00]} 4. e5 {[%emt 0:00:00]} Nfd7 {[%emt 0:00:00]} 5. f4 {[%emt 0:00:00]} c5 {[%emt 0:00:00]} 6. Nf3 {[%emt 0:00:00]} Nc6 {[%emt 0:00:00]} 7. Be3 {[%emt 0:00:03]} Be7 {[%emt 0:00:00]} 8. Qd2 {[%emt 0:00:27]} O-O {[%emt 0:00:07]} 9. dxc5 {[%emt 0:01:33]} Qa5 {[%emt 0:00:18]} 10. a3 {[%emt 0:10:29]} a6 {[%emt 0:01:29]} 11. Be2 {[%emt 0:02:09]} Bxc5 {[%emt 0:00:44]} 12. Bxc5 {[%emt 0:01:08]} Qxc5 {[%emt 0:05:12]} 13. b4 {[%emt 0:01:10]} Qb6 {[%emt 0:09:50]} 14. Na4 {[%emt 0:25:08]} Qa7 {[%emt 0:05:55]} 15. Nb2 {[%emt 0:01:19]} f6 {[%emt 0:02:30]} 16. c4 {[%emt 0:04:08]} fxe5 {[%emt 0:15:55]} 17. cxd5 {[%emt 0:00:46]} exd5 {[%emt 0:00:38]} 18. Qxd5+ {[%emt 0:00:11]} Kh8 {[%emt 0:00:14]} 19. Ng5 {[%emt 0:05:18]} Nf6 {[%emt 0:06:12]} 20. Nf7+ {[%emt 0:03:07]} Rxf7 {[%emt 0:00:05]} 21. Qxf7 {[%emt 0:00:04]} Bf5 {[%emt 0:07:24]} 22. Nc4 {[%emt 0:18:20]} Nd4 {[%emt 0:15:04]} 23. Ra2 {[%emt 0:14:17]} Be6 {[%emt 0:05:35]} 24. Qe7 {[%emt 0:00:22]} Re8 {[%emt 0:03:14]} 25. Qc7 {[%emt 0:05:30]} Rc8 {[%emt 0:03:06]} 26. Qxe5 {[%emt 0:03:27]} Bxc4 {[%emt 0:01:28]} 27. Bxc4 {[%emt 0:00:28]} Re8 {[%emt 0:05:42]} 28. Rd2 {[%emt 0:02:27]} Nc6 {[%emt 0:00:46]} 29. Qxe8+ {[%emt 0:00:26]} Nxe8 {[%emt 0:00:02]} 30. Kd1 {[%emt 0:00:14]} Nf6 {[%emt 0:00:58]} 31. Re1 {[%emt 0:00:15]} h5 {[%emt 0:00:47]} 32. Bf7 {[%emt 0:02:23]} Kh7 {[%emt 0:01:29]} 33. h3 {[%emt 0:00:17]} b5 {[%emt 0:00:28]} 34. Ba2 {[%emt 0:00:34]} Nd4 {[%emt 0:02:33]} 35. Bb1+ {[%emt 0:00:11]} g6 {[%emt 0:00:32]} 36. Re3 {[%emt 0:00:43]} Nf5 {[%emt 0:00:52]} 37. Re1 {[%emt 0:00:22]} Ne3+ {[%emt 0:00:42]} 0-1

[Event "Teplice Open 2019"]
[Site "Teplice"]
[Date "2019.06.20"]
[Round "6.16"]
[White "Morgunov, Marc"]
[Black "Janik, Igor"]
[Result "0-1"]
[ECO "B31"]
[WhiteElo "2351"]
[BlackElo "2483"]
[Annotator "ChessBase"]
[PlyCount "73"]
[EventDate "2019.06.15"]
[EventType "swiss"]
[EventCountry "CZE"]
[SourceTitle "playchess.com"]
[Source "ChessBase"]
[SourceQuality "1"]
[TimeControl "40/5400+30:1800+30"]

1. e4 {[%emt 0:00:00]} c5 {[%emt 0:00:00]} 2. Nc3 {[%emt 0:00:00]} Nc6 {[%emt 0:00:00]} 3. Bb5 {[%emt 0:00:00]} Nd4 {[%emt 0:00:17]} 4. Nf3 {[%emt 0:00:00]} g6 {[%emt 0:00:50]} 5. O-O {[%emt 0:01:35]} Bg7 {[%emt 0:00:11]} 6. Nxd4 {[%emt 0:05:10]} cxd4 {[%emt 0:00:10]} 7. Ne2 {[%emt 0:00:13]} Nf6 {[%emt 0:00:50]} 8. d3 {[%emt 0:02:55]} O-O {[%emt 0:00:58]} 9. c3 {[%emt 0:10:54]} dxc3 {[%emt 0:00:24]} 10. Nxc3 {[%emt 0:01:11]} a6 {[%emt 0:00:36]} 11. Bc4 {[%emt 0:00:26]} b5 {[%emt 0:01:09]} 12. Bb3 {[%emt 0:00:09]} d6 {[%emt 0:00:14]} 13. Qe2 {[%emt 0:07:02]} Bb7 {[%emt 0:00:59]} 14. Be3 {[%emt 0:01:24]} Rc8 {[%emt 0:03:24]} 15. a3 {[%emt 0:04:27]} e6 {[%emt 0:00:59]} 16. f4 {[%emt 0:05:54]} d5 {[%emt 0:04:36]} 17. Bf2 {[%emt 0:21:20]} Nh5 {[%emt 0:07:44]} 18. g3 {[%emt 0:06:04]} Bxc3 {[%emt 0:02:23]} 19. bxc3 {[%emt 0:00:27]} Rxc3 {[%emt 0:00:47]} 20. Rfc1 {[%emt 0:07:22]} Qc7 {[%emt 0:01:23]} 21. Rcb1 {[%emt 0:05:01]} dxe4 {[%emt 0:02:12]} 22. dxe4 {[%emt 0:00:14]} Nf6 {[%emt 0:00:49]} 23. Bd4 {[%emt 0:06:13]} Nxe4 {[%emt 0:00:10]} 24. Rb2 {[%emt 0:00:59]} Rc6 {[%emt 0:06:08]} 25. Re1 {[%emt 0:03:53]} Rd6 {[%emt 0:00:26]} 26. Be5 {[%emt 0:01:06]} Qc5+ {[%emt 0:01:01]} 27. Qe3 {[%emt 0:00:06]} Rd3 {[%emt 0:01:10]} 28. Qxc5 {[%emt 0:00:29]} Nxc5 {[%emt 0:00:02]} 29. Ba2 {[%emt 0:02:16]} Nd7 {[%emt 0:04:47]} 30. a4 {[%emt 0:01:53]} Nxe5 {[%emt 0:00:34]} 31. Rxe5 {[%emt 0:02:05]} Bc6 {[%emt 0:00:33]} 32. axb5 {[%emt 0:02:12]} Bxb5 {[%emt 0:00:16]} 33. Rc2 {[%emt 0:01:03]} Rfd8 {[%emt 0:00:48]} 34. Re1 {[%emt 0:01:04]} Rd2 {[%emt 0:00:47]} 35. Rec1 {[%emt 0:00:32]} Kg7 {[%emt 0:00:21]} 36. Bb3 {[%emt 0:01:18]} Kf6 {[%emt 0:00:20]} 37. Ba2 {[%emt 0:00:19] Ke5} 0-1

[Event "Teplice Open 2019"]
[Site "Teplice"]
[Date "2019.06.20"]
[Round "6.17"]
[White "Serrano, Salvador Eduardo"]
[Black "Blohberger, Felix"]
[Result "0-1"]
[ECO "D03"]
[WhiteElo "2334"]
[BlackElo "2475"]
[Annotator "ChessBase"]
[PlyCount "83"]
[EventDate "2019.06.15"]
[EventType "swiss"]
[EventCountry "CZE"]
[SourceTitle "playchess.com"]
[Source "ChessBase"]
[SourceQuality "1"]
[TimeControl "40/5400+30:1800+30"]

1. d4 {[%emt 0:00:00]} Nf6 {[%emt 0:00:00]} 2. Nf3 {[%emt 0:00:00]} d5 {[%emt 0:00:30]} 3. Bg5 {[%emt 0:00:42]} Ne4 {[%emt 0:01:24]} 4. Bh4 {[%emt 0:00:13]} h5 {[%emt 0:01:15]} 5. Nfd2 {[%emt 0:21:44]} g5 {[%emt 0:01:02]} 6. Nxe4 {[%emt 0:00:38]} gxh4 {[%emt 0:00:06]} 7. Ned2 {[%emt 0:04:36]} Nc6 {[%emt 0:01:29]} 8. Nf3 {[%emt 0:02:19]} Bg7 {[%emt 0:03:25]} 9. Nc3 {[%emt 0:03:55]} Bg4 {[%emt 0:18:59]} 10. e3 {[%emt 0:05:29]} e5 {[%emt 0:01:26]} 11. dxe5 {[%emt 0:03:54]} Nxe5 {[%emt 0:00:58]} 12. Be2 {[%emt 0:02:22]} h3 {[%emt 0:05:06]} 13. gxh3 {[%emt 0:04:35]} Bxf3 {[%emt 0:02:26]} 14. Bxf3 {[%emt 0:00:08]} c6 {[%emt 0:00:05]} 15. Be2 {[%emt 0:04:50]} Qb6 {[%emt 0:04:03]} 16. Rb1 {[%emt 0:10:33]} O-O-O {[%emt 0:04:46]} 17. Bxh5 {[%emt 0:06:49]} d4 {[%emt 0:11:52]} 18. Bg4+ {[%emt 0:00:32]} f5 {[%emt 0:01:54]} 19. Bxf5+ {[%emt 0:00:17]} Kb8 {[%emt 0:00:26]} 20. Ne4 {[%emt 0:06:17]} dxe3 {[%emt 0:04:09]} 21. Qe2 {[%emt 0:00:22]} Rhf8 {[%emt 0:05:18]} 22. Ng3 {[%emt 0:09:45]} Rd2 {[%emt 0:11:20]} 23. Qxe3 {[%emt 0:00:14]} Qxe3+ {[%emt 0:00:07]} 24. fxe3 {[%emt 0:00:05]} Nf3+ {[%emt 0:00:05]} 25. Kf1 {[%emt 0:00:03]} Nxh2+ {[%emt 0:13:30]} 26. Rxh2 {[%emt 0:00:08]} Rxh2 {[%emt 0:00:04]} 27. Kg1 {[%emt 0:00:11]} Rd2 {[%emt 0:00:03]} 28. Ne4 {[%emt 0:00:18]} Re2 {[%emt 0:01:54]} 29. Rf1 {[%emt 0:00:52]} Bh6 {[%emt 0:01:32]} 30. Ng3 {[%emt 0:02:42]} Rxe3 {[%emt 0:03:13]} 31. Kg2 {[%emt 0:00:16]} Bg7 {[%emt 0:00:42]} 32. Bd3 {[%emt 0:00:58]} Rxf1 {[%emt 0:02:10]} 33. Nxf1 {[%emt 0:00:05]} Re1 {[%emt 0:00:02]} 34. b3 {[%emt 0:00:27]} b5 {[%emt 0:00:08]} 35. Ng3 {[%emt 0:00:31]} Ra1 {[%emt 0:00:42]} 36. Nf5 {[%emt 0:00:19]} Bf6 {[%emt 0:00:05]} 37. h4 {[%emt 0:00:26]} Rxa2 {[%emt 0:00:05]} 38. h5 {[%emt 0:00:05]} a5 {[%emt 0:00:47]} 39. h6 {[%emt 0:00:08]} a4 {[%emt 0:00:47]} 40. bxa4 {[%emt 0:00:04]} bxa4 {[%emt 0:00:05]} 41. Ne3 {[%emt 0:31:21]} a3 {[%emt 0:31:18]} 42. Nc4 {[%emt 0:04:44]} 0-1

[Event "Teplice Open 2019"]
[Site "Teplice"]
[Date "2019.06.20"]
[Round "6.18"]
[White "Cernousek, Lukas"]
[Black "Rubes, Jan"]
[Result "0-1"]
[ECO "A78"]
[WhiteElo "2466"]
[BlackElo "2352"]
[Annotator "RC"]
[PlyCount "158"]
[EventDate "2019.06.15"]
[EventType "swiss"]
[EventCountry "CZE"]
[SourceTitle "playchess.com"]
[Source "ChessBase"]
[SourceQuality "1"]
[TimeControl "40/5400+30:1800+30"]

1. d4 {[%emt 0:00:00]} Nf6 {[%emt 0:00:00]} 2. c4 {[%emt 0:00:00]} e6 {[%emt 0:00:00]} 3. Nf3 {[%emt 0:00:18]} c5 {[%emt 0:00:00]} 4. d5 {[%emt 0:00:28]} exd5 {[%emt 0:00:00]} 5. cxd5 {[%emt 0:00:06]} d6 {[%emt 0:00:02]} 6. Nc3 {[%emt 0:00:31]} g6 {[%emt 0:00:04]} 7. Nd2 {[%emt 0:00:43]} Bg7 {[%emt 0:00:26]} 8. e4 {[%emt 0:00:08]} O-O {[%emt 0:00:11]} 9. Be2 {[%emt 0:00:36]} Na6 {[%emt 0:12:40]} 10. O-O {[%emt 0:00:10]} Nc7 {[%emt 0:00:11]} 11. a4 {[%emt 0:05:25]} b6 {[%emt 0:05:47]} 12. Re1 {[%emt 0:09:08]} Re8 {[%emt 0:15:05]} 13. h3 {[%emt 0:16:31]} Rb8 {[%emt 0:01:23]} 14. Bb5 {[%emt 0:00:48]} Rf8 {[%emt 0:06:49]} 15. Nc4 {[%emt 0:31:46]} a6 {[%emt 0:02:45]} 16. Bc6 {[%emt 0:00:01]} Nd7 {[%emt 0:36:08]} 17. Nxd6 {[%emt 0:05:47]} Ne5 {[%emt 0:00:10]} 18. Nxc8 {[%emt 0:00:06]} Rxc8 {[%emt 0:00:53]} 19. Bf4 {[%emt 0:01:52]} Nxc6 {[%emt 0:00:12]} 20. dxc6 {[%emt 0:00:02]} Bd4 {[%emt 0:02:40]} 21. Nd5 {[%emt 0:15:37]} Nxd5 {[%emt 0:00:52]} 22. exd5 {[%emt 0:00:01]} Qxd5 {[%emt 0:00:07]} 23. c7 {[%emt 0:00:06]} Qc6 {[%emt 0:01:45]} 24. Rc1 {[%emt 0:08:27]} Bxb2 {[%emt 0:00:44]} 25. Rc2 {[%emt 0:00:01]} Qxa4 {[%emt 0:02:51]} 26. Rxb2 {[%emt 0:03:17]} Qxf4 {[%emt 0:00:06]} 27. Rxb6 {[%emt 0:00:06]} Rxc7 {[%emt 0:00:17]} 28. Rxa6 {[%emt 0:00:03]} c4 {[%emt 0:00:24]} 29. Ra4 {[%emt 0:01:48]} Rfc8 {[%emt 0:00:15]} 30. Re3 {[%emt 0:00:28]} Qf6 {[%emt 0:00:21]} 31. Qc2 {[%emt 0:00:31]} c3 {[%emt 0:00:39]} 32. Ra3 {[%emt 0:00:33]} Qd4 {[%emt 0:00:13]} 33. g3 {[%emt 0:00:34]} Qb4 {[%emt 0:02:49]} 34. Ra4 {[%emt 0:00:29]} Qb2 {[%emt 0:01:14]} 35. Ra2 {[%emt 0:00:29]} Qxa2 {[%emt 0:05:40]} 36. Qxa2 {[%emt 0:00:02]} c2 {[%emt 0:00:03]} 37. Re1 {[%emt 0:00:08]} c1=Q {[%emt 0:00:05]} 38. Rxc1 {[%emt 0:00:03]} Rxc1+ {[%emt 0:00:05]} 39. Kg2 {[%emt 0:00:03]} R1c2 {[%emt 0:00:38]} 40. Qd5 {[%emt 0:02:00]} Re2 {[%emt 0:00:37]} 41. h4 {[%emt 0:21:54]} h5 {[%emt 0:03:51]} 42. g4 {[%emt 0:00:08]} hxg4 {[%emt 0:00:07]} 43. h5 {[%emt 0:00:04]} Re6 {[%emt 0:07:39]} 44. Qg5 {[%emt 0:07:06]} Kh7 {[%emt 0:12:11]} 45. hxg6+ {[%emt 0:02:15]} Rxg6 {[%emt 0:00:16]} 46. Qf5 {[%emt 0:00:26]} Rf8 {[%emt 0:00:23]} 47. Kg3 {[%emt 0:00:15]} Kg8 {[%emt 0:00:14]} 48. Qd7 {[%emt 0:00:21]} Rb8 {[%emt 0:01:24]} 49. Qd5 {[%emt 0:00:19]} Rbb6 {[%emt 0:01:53]} 50. Qd8+ {[%emt 0:00:37]} Kh7 {[%emt 0:00:38]} 51. Qe7 {[%emt 0:01:03]} Rb3+ {[%emt 0:01:39]} 52. Kg2 {[%emt 0:00:04]} Rf3 {[%emt 0:00:05]} 53. Qh4+ {[%emt 0:00:54]} Kg7 {[%emt 0:00:06]} 54. Qh5 {[%emt 0:00:22]} Kg8 {[%emt 0:02:52]} 55. Qh4 {[%emt 0:00:09]} Rf5 {[%emt 0:00:39]} 56. Kh1 {[%emt 0:01:25]} Kg7 {[%emt 0:00:42]} 57. Kg1 {[%emt 0:00:22]} Rgf6 {[%emt 0:00:34]} 58. Qg3 {[%emt 0:01:29]} Rxf2 {[%emt 0:01:34]} 59. Qe5 {[%emt 0:00:09]} R2f5 {[%emt 0:00:18]} 60. Qd4 {[%emt 0:00:10]} Rg5 {[%emt 0:00:22]} 61. Kg2 {[%emt 0:00:08]} g3 {[%emt 0:00:56]} 62. Qc3 {[%emt 0:00:10]} Rgg6 {[%emt 0:00:17]} 63. Qe5 {[%emt 0:00:06]} Kg8 {[%emt 0:00:18]} 64. Qe8+ {[%emt 0:00:23]} Kh7 {[%emt 0:00:06]} 65. Qe4 {[%emt 0:00:16]} Rf2+ {[%emt 0:00:15]} 66. Kg1 {[%emt 0:00:03]} Rff6 {[%emt 0:02:31]} 67. Kg2 {[%emt 0:00:02]} Re6 {[%emt 0:00:22]} 68. Qd3 {[%emt 0:00:22]} Kh6 {[%emt 0:02:03]} 69. Qd2+ {[%emt 0:02:45]} Rg5 {[%emt 0:00:09]} 70. Qd8 {[%emt 0:00:25]} Re2+ {[%emt 0:01:50]} 71. Kg1 {[%emt 0:01:22]} g2 {[%emt 0:02:35]} 72. Qf6+ {[%emt 0:00:05]} Rg6 {[%emt 0:00:11]} 73. Qh4+ {[%emt 0:00:50]} Kg7 {[%emt 0:00:07]} 74. Qd4+ {[%emt 0:00:02]} Kg8 {[%emt 0:00:39]} 75. Qd8+ {[%emt 0:00:08]} Kh7 {[%emt 0:00:07]} 76. Qa5 {[%emt 0:00:53]} Ree6 {[%emt 0:00:21]} 77. Qh5+ {[%emt 0:00:34]} Kg7 {[%emt 0:00:11]} 78. Qh4 {[%emt 0:00:48]} Ref6 {[%emt 0:00:07]} 79. Qd4 {[%emt 0:00:06]} Kg8 {[%emt 0:00:05]} 0-1

[Event "Teplice Open 2019"]
[Site "Teplice"]
[Date "2019.06.20"]
[Round "6.20"]
[White "Gungl, Theo"]
[Black "Song, Raymond"]
[Result "1/2-1/2"]
[ECO "A87"]
[WhiteElo "2313"]
[BlackElo "2450"]
[Annotator "ChessBase"]
[PlyCount "86"]
[EventDate "2019.06.15"]
[EventType "swiss"]
[EventCountry "CZE"]
[SourceTitle "playchess.com"]
[Source "ChessBase"]
[SourceQuality "1"]
[TimeControl "40/5400+30:1800+30"]

1. d4 {[%emt 0:00:00]} f5 {[%emt 0:00:00]} 2. c4 {[%emt 0:00:00]} Nf6 {[%emt 0:00:00]} 3. g3 {[%emt 0:00:38]} g6 {[%emt 0:00:00]} 4. Bg2 {[%emt 0:00:09]} Bg7 {[%emt 0:00:00]} 5. Nf3 {[%emt 0:00:26]} O-O {[%emt 0:00:00]} 6. Nc3 {[%emt 0:00:41]} d6 {[%emt 0:00:00]} 7. O-O {[%emt 0:01:07]} Qe8 {[%emt 0:00:03]} 8. d5 {[%emt 0:03:30]} Na6 {[%emt 0:00:06]} 9. Nd4 {[%emt 0:05:02]} Nc5 {[%emt 0:01:24]} 10. e3 {[%emt 0:13:30]} a5 {[%emt 0:00:24]} 11. Qc2 {[%emt 0:06:18]} Bd7 {[%emt 0:04:47]} 12. Bd2 {[%emt 0:06:06]} c6 {[%emt 0:02:05]} 13. Nb3 {[%emt 0:06:20]} Nxb3 {[%emt 0:06:13]} 14. Qxb3 {[%emt 0:01:32]} c5 {[%emt 0:09:06]} 15. a4 {[%emt 0:03:40]} g5 {[%emt 0:04:58]} 16. Qd1 {[%emt 0:05:54]} Qg6 {[%emt 0:01:49]} 17. f4 {[%emt 0:12:15]} h5 {[%emt 0:02:42]} 18. fxg5 {[%emt 0:08:22]} Qxg5 {[%emt 0:00:34]} 19. Qe1 {[%emt 0:00:42]} Ng4 {[%emt 0:01:16]} 20. Nd1 {[%emt 0:03:48]} Ne5 {[%emt 0:03:34]} 21. Qe2 {[%emt 0:00:51]} h4 {[%emt 0:02:12]} 22. Be1 {[%emt 0:01:56]} hxg3 {[%emt 0:04:24]} 23. Bxg3 {[%emt 0:00:02]} Qg4 {[%emt 0:00:23]} 24. Qxg4 {[%emt 0:02:20]} fxg4 {[%emt 0:00:02]} 25. Bxe5 {[%emt 0:01:41]} Bxe5 {[%emt 0:00:02]} 26. Ra2 {[%emt 0:01:17]} Kg7 {[%emt 0:01:16]} 27. Rxf8 {[%emt 0:01:19]} Rxf8 {[%emt 0:00:08]} 28. b3 {[%emt 0:00:04]} Bf5 {[%emt 0:01:55]} 29. Bf1 {[%emt 0:03:01]} Rh8 {[%emt 0:03:23]} 30. Rg2 {[%emt 0:04:23]} g3 {[%emt 0:01:00]} 31. hxg3 {[%emt 0:00:45]} Be4 {[%emt 0:00:05]} 32. Nf2 {[%emt 0:01:41]} Bxg2 {[%emt 0:07:17]} 33. Kxg2 {[%emt 0:00:01]} Bb2 {[%emt 0:02:10]} 34. Bd3 {[%emt 0:02:04]} Kf6 {[%emt 0:00:44]} 35. Kf3 {[%emt 0:01:12]} Bc1 {[%emt 0:00:02]} 36. g4 {[%emt 0:01:42]} Kg5 {[%emt 0:00:59]} 37. Bf5 {[%emt 0:00:24]} Kf6 {[%emt 0:02:53]} 38. Ne4+ {[%emt 0:01:26]} Ke5 {[%emt 0:01:18]} 39. Nf2 {[%emt 0:00:09]} Bd2 {[%emt 0:00:14]} 40. Be6 {[%emt 0:02:10]} Rf8+ {[%emt 0:13:00]} 41. Ke2 {[%emt 0:31:15]} Rxf2+ {[%emt 0:30:22]} 42. Kxf2 {[%emt 0:00:07]} Kf6 {[%emt 0:00:03]} 43. Ke2 {[%emt 0:00:17]} Ke5 {[%emt 0:00:12]} 1/2-1/2

[Event "Teplice Open 2019"]
[Site "Teplice"]
[Date "2019.06.20"]
[Round "6.21"]
[White "Ankit, R. Rajpara"]
[Black "Karas, Marek"]
[Result "1-0"]
[ECO "E04"]
[WhiteElo "2447"]
[BlackElo "2268"]
[Annotator "NA"]
[PlyCount "135"]
[EventDate "2019.06.15"]
[EventType "swiss"]
[EventCountry "CZE"]
[SourceTitle "playchess.com"]
[Source "ChessBase"]
[SourceQuality "1"]
[TimeControl "40/5400+30:1800+30"]

1. d4 {[%emt 0:00:26]} Nf6 {[%emt 0:00:00]} 2. c4 {[%emt 0:00:06]} e6 {[%emt 0:00:00]} 3. g3 {[%emt 0:00:06]} d5 {[%emt 0:00:00]} 4. Nf3 {[%emt 0:00:08]} dxc4 {[%emt 0:00:04]} 5. Bg2 {[%emt 0:00:13]} Bb4+ {[%emt 0:00:08]} 6. Bd2 {[%emt 0:00:20]} a5 {[%emt 0:00:08]} 7. Qc2 {[%emt 0:00:24]} Bxd2+ {[%emt 0:00:15]} 8. Qxd2 {[%emt 0:00:21]} b5 {[%emt 0:01:17]} 9. Qg5 {[%emt 0:01:40]} c6 {[%emt 0:10:33]} 10. Qxg7 {[%emt 0:00:37]} Rg8 {[%emt 0:00:09]} 11. Qh6 {[%emt 0:00:07]} Bb7 {[%emt 0:00:52]} 12. O-O {[%emt 0:02:29]} Rg6 {[%emt 0:03:36]} 13. Qd2 {[%emt 0:05:47]} Nbd7 {[%emt 0:00:34]} 14. b3 {[%emt 0:04:18]} cxb3 {[%emt 0:04:19]} 15. axb3 {[%emt 0:00:09]} Nd5 {[%emt 0:05:12]} 16. Nc3 {[%emt 0:02:14]} b4 {[%emt 0:05:56]} 17. Ne4 {[%emt 0:05:08]} Ba6 {[%emt 0:06:17]} 18. Rfc1 {[%emt 0:06:53]} Bb5 {[%emt 0:01:44]} 19. Nd6+ {[%emt 0:16:18]} Kf8 {[%emt 0:01:04]} 20. Nh4 {[%emt 0:07:22]} Rg7 {[%emt 0:04:16]} 21. Bxd5 {[%emt 0:12:11]} exd5 {[%emt 0:02:03]} 22. Qh6 {[%emt 0:10:34]} Qf6 {[%emt 0:04:09]} 23. Qxf6 {[%emt 0:01:14]} Nxf6 {[%emt 0:00:09]} 24. Nxb5 {[%emt 0:00:35]} cxb5 {[%emt 0:00:09]} 25. Rc5 {[%emt 0:00:10]} Ne4 {[%emt 0:01:37]} 26. Rxb5 {[%emt 0:00:14]} Nc3 {[%emt 0:00:24]} 27. Rxb4 {[%emt 0:06:15]} Nxe2+ {[%emt 0:00:29]} 28. Kf1 {[%emt 0:00:27]} Nc3 {[%emt 0:00:13]} 29. Nf5 {[%emt 0:01:04]} Rg5 {[%emt 0:01:43]} 30. Rxa5 {[%emt 0:00:13]} Rc8 {[%emt 0:01:21]} 31. Rc5 {[%emt 0:03:11]} Rd8 {[%emt 0:00:53]} 32. Rxc3 {[%emt 0:02:26]} Rxf5 {[%emt 0:00:08]} 33. Kg2 {[%emt 0:00:32]} Rd7 {[%emt 0:00:20]} 34. Rb8+ {[%emt 0:00:40]} Kg7 {[%emt 0:00:09]} 35. b4 {[%emt 0:01:36]} Re7 {[%emt 0:00:17]} 36. Re3 {[%emt 0:01:31]} Rc7 {[%emt 0:00:25]} 37. Rd8 {[%emt 0:02:44]} Rc4 {[%emt 0:00:41]} 38. Re5 {[%emt 0:00:29]} Rf6 {[%emt 0:00:11]} 39. Rdxd5 {[%emt 0:00:30]} Rxb4 {[%emt 0:00:09]} 40. Re3 {[%emt 0:00:50]} Kg6 {[%emt 0:01:05]} 41. Rf3 {[%emt 0:31:35]} Ra6 {[%emt 0:30:54]} 42. Rd7 {[%emt 0:00:24]} f6 {[%emt 0:00:13]} 43. Rf4 {[%emt 0:00:41]} h5 {[%emt 0:00:29]} 44. Rd5 {[%emt 0:00:30]} Rb2 {[%emt 0:00:32]} 45. Kh3 {[%emt 0:00:56]} Rb1 {[%emt 0:00:39]} 46. Kg2 {[%emt 0:00:00]} Rb2 {[%emt 0:00:00]} 47. Rff5 {[%emt 0:00:00]} Raa2 {[%emt 0:00:00]} 48. h3 {[%emt 0:00:00]} Rd2 {[%emt 0:00:00]} 49. Rf4 {[%emt 0:00:00]} Ra6 {[%emt 0:00:00]} 50. g4 {[%emt 0:00:00]} hxg4 {[%emt 0:00:00]} 51. hxg4 {[%emt 0:00:00]} Rd3 {[%emt 0:00:00]} 52. Rf3 {[%emt 0:00:00]} Rd1 {[%emt 0:00:00]} 53. Rff5 {[%emt 0:00:00]} Rd3 {[%emt 0:00:00]} 54. f3 {[%emt 0:00:00]} Rd2+ {[%emt 0:00:00]} 55. Kg3 {[%emt 0:00:00]} Rd1 {[%emt 0:00:00]} 56. Rd7 {[%emt 0:00:00]} Rg1+ {[%emt 0:00:00]} 57. Kf4 {[%emt 0:00:00]} Rd1 {[%emt 0:00:00]} 58. g5 {[%emt 0:00:00]} fxg5+ {[%emt 0:00:00]} 59. Rxg5+ {[%emt 0:00:00]} Kf6 {[%emt 0:00:00]} 60. Rh5 {[%emt 0:01:30]} Kg6 {[%emt 0:00:00]} 61. Rhd5 {[%emt 0:00:28]} Kf6 {[%emt 0:00:00]} 62. R7d6+ {[%emt 0:01:16]} Rxd6 {[%emt 0:00:00]} 63. Rxd6+ {[%emt 0:00:02]} Ke7 {[%emt 0:00:00]} 64. Ke5 {[%emt 0:01:53]} Re1+ {[%emt 0:00:00]} 65. Kd5 {[%emt 0:00:07]} Rf1 {[%emt 0:00:00]} 66. Re6+ {[%emt 0:00:04]} Kd7 {[%emt 0:00:00]} 67. Re3 {[%emt 0:00:06]} Rf2 {[%emt 0:00:00]} 68. Ke4 {[%emt 0:00:55]} 1-0